Workbook

Sheet Bud vs actls-1-01-06 to 30-9-6
A1: Swami Vivekananda Youth Movement
A2: Shikshanavahini Project - HD Kote
A4: Sn | B4: Particulars | C4: Budget | D4: Expenses | G4: Unspent Balance
D5: 01-01-06 to 31-03-06 | E5: 01-04-06 to 30-09-06 | F5: Total Expenses
B6: Asha for Education:
A7: 1 | B7: Awareness Campaigns | C7: 50000 | D7: 10369 | F7: =+D7+E7 -> 10369 | G7: =+C7-F7 -> 39631
A8: 2 | B8: Administration Costs/Operational Costs | C8: 50000 | D8: 3449 | E8: 17856 | F8: =+D8+E8 -> 21305 | G8: =+C8-F8 -> 28695
A9: 3 | B9: Salaries
B10: Program Manager | C10: 72000 | D10: 15883 | E10: 36123 | F10: 52006 | G10: 19994
B11: Asst. Program Manager | C11: 48000 | D11: 12318 | E11: 23813 | F11: 36131 | G11: 11869
B12: Organizers | C12: 156000 | D12: 29995 | E12: 74159 | F12: 104154 | G12: 51846
A13: 4 | B13: Training Costs | C13: 108000 | D13: 14656 | E13: 42086 | F13: 56742 | G13: 51258
A14: 5 | B14: Transport Cost | C14: 100000 | D14: 20194 | E14: 51345 | F14: 71539 | G14: 28461
B15: Total | C15: =SUM(C7:C14) -> 584000 | D15: =SUM(D7:D14) -> 106864 | E15: =SUM(E7:E14) -> 245382 | F15: =SUM(F7:F14) -> 352246 | G15: =SUM(G7:G14) -> 231754
A17: Fund Details:
B18: Ist Instalment (ch no. 942069) | C18: 96047.2
B19: 2nd Instalment (ch no. 945051) | C19: 96047.2
B20: 3rd Instalment (ch no. 942070) | C20: 96110
B21: Total amount received | C21: =SUM(C18:C20) -> 288204.4
B22: Less: expenses (01-01-06 to 30-09-06) | C22: =+F15 -> 352246
B23: Balance with SVYM | C23: =+C21-C22 -> -64041.6

Sheet Bud vs actls-1-1-6 to 31-12-6
A1: Swami Vivekananda Youth Movement
A2: Shikshanavahini Project - HD Kote
A4: Sn | B4: Particulars | C4: Budget | D4: Expenses | J4: Unspent Balance
D5: 01-01-06 to 31-03-06 | E5: 01-04-06 to 30-09-06 | F5: 2006-10-01 | G5: 2006-11-01 | H5: 2006-12-01 | I5: Total Expenses
B6: Asha for Education:
A7: 1 | B7: Awareness Campaigns | C7: 50000 | D7: 10369 | G7: 553 | H7: 21592 | I7: =SUM(D7:H7) -> 32514 | J7: =+C7-I7 -> 17486
A8: 2 | B8: Administration Costs/Operational Costs | C8: 50000 | D8: 3449 | E8: 15277 | F8: 2233 | G8: 3077 | H8: 3179 | I8: =SUM(D8:H8) -> 27215 | J8: =+C8-I8 -> 22785
A9: 3 | B9: Salaries
B10: Program Manager | C10: 72000 | D10: 15883 | E10: 36123 | F10: 6054 | G10: 6054 | H10: 6054 | I10: 70168 | J10: 1832
B11: Asst. Program Manager | C11: 48000 | D11: 12318 | E11: 23813 | F11: 4036 | G11: 3767 | H11: 4036 | I11: 47970 | J11: 30
B12: Organizers | C12: 156000 | D12: 29995 | E12: 74159 | F12: 12612 | G12: 12612 | H12: 12612 | I12: 141990 | J12: 14010
A13: 4 | B13: Training Costs | C13: 108000 | D13: 14656 | E13: 40029 | F13: 3962 | G13: 5521 | H13: 9477 | I13: 73645 | J13: 34355
A14: 5 | B14: Transport Cost | C14: 100000 | D14: 20194 | E14: 49867 | F14: 4550 | G14: 9634 | H14: 5660 | I14: 89905 | J14: 10095
B15: Total | C15: =SUM(C7:C14) -> 584000 | D15: 106864 | E15: 239268 | F15: 33447 | G15: =SUM(G7:G14) -> 41218 | H15: =SUM(H7:H14) -> 62610 | I15: 483407 | J15: 100593
A16: Fund Details:
B17: Ist Instalment (ch no. 942069) | C17: 96047.2
B18: 2nd Instalment (ch no. 945051) | C18: 96047.2
B19: 3rd Instalment (ch no. 942070) | C19: 96110
B20: 4th Instalment (ch no. 180739/13.12.06) | C20: 115832.72
B21: 5th Instalment (ch no. 181565/14.02.07) | C21: 115832.72
B22: Total amount received | C22: =SUM(C17:C21) -> 519869.84
B23: Less: expenses (01-01-06 to 31-12-06) | C23: =+I15 -> 483407
B24: Balance with SVYM | C24: =+C22-C23 -> 36462.84

Sheet FINAL
A1: Project Name : | C1: Asha Mobile Science Lab
A2: Project Period : | C2: 01-04-2011 to 31-05-2012
A3: Reporting Period : | C3: 01-04-2012 to 31-05-2012
A4: Sl No | B4: Particulars | C4: Budget as on 31-03-2012 | D4: Re-appropriated Budget | E4: Expenses April 12 to May 12 | F4: Budget Unspent | G4: % of Utilisation
B6: A. Personnel Cost
B7: Program Manager | C7: 5265.4 | D7: 12000 | E7: 3000 | F7: 9000 | G7: =E7/D7*100 -> 25
B8: Facilitator | C8: 4635 | D8: 18000 | E8: 16070 | F8: 1930 | G8: =E8/D8*100 -> 89.27777778
B9: Program Coordinator | C9: 15806.4 | D9: 0 | E9: 0 | F9: 0 | G9: 0
B10: B. Recurring Cost | C10: 0 | F10: 0 | G10: 0
B11: A. Operational Cost | C11: 0 | F11: 0 | G11: 0
B12: Office rent, Stationery, Documentation | C12: 0 | D12: 5919 | E12: 4134 | F12: 1785 | G12: =E12/D12*100 -> 69.84287886
B13: Teachers' meetings | C13: 255 | D13: 0 | E13: 0 | F13: 0 | G13: 0
B14: Annual Report | C14: 0 | D14: 0 | E14: 0 | F14: 0 | G14: 0
B15: Prayoga | C15: 18000 | D15: 0 | E15: 0 | F15: 0 | G15: 0
B16: B. Travel & Conveyance | C16: 0 | F16: 0 | G16: 0
B17: Vehicle Travel - Tata ACE | C17: 1712 | D17: 2000 | E17: 616 | F17: 1384 | G17: =E17/D17*100 -> 30.8
B18: Staff Travel | C18: 2400 | D18: 600 | E18: 227 | F18: 373 | G18: =E18/D18*100 -> 37.83333333
B19: C. Technical & Resource Support | C19: 0 | F19: 0 | G19: 0
B20: Chemicals, specimens & equipment | C20: 89 | D20: 47000 | E20: 7621 | F20: 39379 | G20: =E20/D20*100 -> 16.21489362
B21: Libraries | C21: 3006 | D21: 0 | E21: 0 | F21: 0 | G21: 0
B22: Electronics kit | C22: 2410 | D22: 2400 | E22: 0 | F22: 2400 | G22: =E22/D22*100 -> 0
B23: Worksheets | C23: 0 | D23: 0 | E23: 0 | F23: 0 | G23: 0
B24: D. Capacity Building | C24: 0 | F24: 0 | G24: 0
B25: Teacher Training | C25: 8587 | D25: 0 | E25: 0 | F25: 0 | G25: 0
B26: Students' Training | C26: 5984 | D26: 10000 | E26: 0 | F26: 10000 | G26: =E26/D26*100 -> 0
B27: Staff Training & Exposure visits | C27: 4504 | D27: 1000 | E27: 0 | F27: 1000 | G27: =E27/D27*100 -> 0
B28: E. Science Calendar | C28: 0 | F28: 0 | G28: 0
B29: World Environment Day | C29: 3600 | D29: 10000 | E29: 0 | F29: =D29-E29 -> 10000 | G29: =E29/D29*100 -> 0
B30: Engineer's Day | C30: 5238 | E30: 0
B31: Columbus Day | C31: 2110 | E31: 0
B32: World Science Day | C32: 3850 | E32: 0
B33: Young Mathematician Contest | C33: 1850 | E33: 0
B34: National Science Day (Vignyana mela) | C34: 0 | E34: 0
B35: F. Events | C35: 0 | F35: 0 | G35: 0
B36: Awareness campaigns | C36: 1260 | E36: 0 | F36: 0 | G36: 0
B37: Science & computer lab exposure visits | C37: 18157 | E37: 0 | F37: 0 | G37: 0
B38: Science Club events | C38: 200 | E38: 0 | F38: 0 | G38: 0
C39: 0 | F39: 0 | G39: 0
A40: TOTAL | C40: 108918.8 | D40: 108919 | E40: 31668 | F40: 77251 | G40: =E40/D40*100 -> 29.07481707
A41: Position of Funds :-
A42: I | B42: Opening Balance : | C42: 116985
A43: II | B43: Funds Received for the Period : | C43: 0
B44: Total Funds received during the period | C44: =C42+C43 -> 116985
B45: Expenses inurred for the period | C45: =E40 -> 31668
A46: III | B46: Total Expenses Incurred | C46: =SUM(C45:C45) -> 31668
A47: IV | B47: Fund Balance | C47: =C44-C46 -> 85317
